bitfinex/quotes_SOLUSD_20250212
["timestamp","ask_amount","ask_price","bid_price","bid_amount"]
[1739367652350,42.91871192,190.74,190.66,42.91871192]
[1739367652821,1.37659666,190.86,190.72,42.91871192]
[1739367653012,42.91871192,190.84,190.76,42.91871192]
[1739367653210,42.91871192,190.79,190.61,0.12549]
[1739367653423,1.50172601,190.78,190.6,0.03]
[1739367653615,1.37623601,190.78,190.6,0.03]
[1739367653815,0.37647,190.73,190.6,0.03]
[1739367654106,0.37647,190.69,190.6,0.03]
[1739367654311,0.37647,190.64,190.6,0.03]
[1739367654514,85.83742384,190.61,190.6,0.03]
[1739367654727,87.59208028,190.61,190.6,0.03]
[1739367655040,0.37647,190.57,190.51,0.03]
[1739367655200,1.37850666,190.56,190.51,0.03]
[1739367655405,0.05583434,190.55,190.51,0.03]
[1739367655635,0.25098,190.46,190.41,26.67400856]
[1739367655817,0.05583434,190.45,190.41,26.67400856]
[1739367656940,42.97454626,190.45,190.41,26.67400856]
[1739367657319,0.12549,190.42,190.41,26.67400856]
[1739367657519,44.54855755,190.42,190.41,26.67400856]
[1739367657937,44.67404755,190.42,190.41,26.67400856]
[1739367658252,44.67404755,190.42,190.4,0.12]
[1739367658253,0.12549,190.41,190.4,26.46508779]
[1739367658546,0.12549,190.4,190.24,26.97360283]
[1739367658721,0.12549,190.4,190.11,13.41603973]
[1739367658722,1.37955529,190.39,190.3,26.75304846]
[1739367658911,0.05583434,190.38,190.3,26.75304846]
[1739367659111,1.3794158,190.37,190.3,26.75304846]
[1739367659331,0.05583434,190.36,190.3,26.75304846]
[1739367659937,0.05583434,190.36,190.34,42.91871192]
[1739367660127,0.05583434,190.36,190.35,42.91871192]
[1739367660333,0.05583434,190.36,190.24,26.8116691]
[1739367660530,0.05583434,190.36,190.28,26.0248497]
[1739367660747,0.05583434,190.36,190.04,1.34780433]
[1739367660748,0.05583434,190.36,190.24,26.8116691]
[1739367661118,0.05583434,190.36,190.32,26.86066877]
[1739367661445,0.05583434,190.36,190.24,26.8116691]
[1739367661754,0.05583434,190.36,190.32,26.86066877]
[1739367661929,42.91871192,190.51,190.36,13.41184853]
[1739367662130,42.91871192,190.44,190.33,26.68751876]
[1739367662325,1.37877996,190.43,190.24,26.8116691]
[1739367662655,1.37891654,190.56,190.32,26.98615877]
[1739367662958,1.37891654,190.56,190.33,26.68751876]
[1739367663127,0.37647,190.53,190.24,26.8116691]
[1739367663321,0.12549,190.49,190.24,26.8116691]
[1739367663525,0.12549,190.49,190.14,26.65466775]
[1739367663526,20.0,190.43,190.14,26.65466775]
[1739367663732,20.0,190.38,190.11,26.11268966]
[1739367663939,42.91871192,190.3,190.27,26.66141892]
[1739367664144,43.29518192,190.28,190.27,26.66141892]
[1739367664360,43.16969192,190.28,190.27,26.66141892]
[1739367664864,1.37996017,190.32,190.27,26.66141892]
[1739367665062,1.37972539,190.39,190.27,26.66141892]
[1739367665247,0.25098,190.36,190.21,26.591588]
[1739367665550,0.25098,190.28,190.25,7.77914195]
[1739367665756,43.29518192,190.26,190.25,7.77914195]
[1739367666133,43.16969192,190.26,190.25,7.77914195]
[1739367666330,1.38014089,190.29,190.25,7.77914195]
[1739367666570,1.37988905,190.38,190.25,7.77914195]
[1739367666941,13.78831853,190.37,190.25,7.77914195]
[1739367667141,0.063,190.42,190.1,1.6232]
[1739367667142,0.37647,190.27,190.1,1.6232]
[1739367667341,42.91871192,190.19,190.11,42.91871192]
[1739367667762,42.91871192,190.17,190.1,1.6232]
[1739367668058,42.91871192,190.21,190.13,42.91871192]
[1739367668232,42.91871192,190.19,190.11,42.91871192]
[1739367668440,42.91871192,190.17,190.11,42.91871192]
[1739367668640,42.91871192,190.19,190.11,42.91871192]
[1739367668834,42.91871192,190.23,190.15,42.91871192]
[1739367669039,42.91871192,190.23,190.14,42.91871192]
[1739367669233,42.91871192,190.25,190.18,42.91871192]
[1739367669441,42.91871192,190.27,190.19,42.91871192]
[1739367669742,42.91871192,190.2,190.1,1.6232]
[1739367670067,42.91871192,190.26,190.1,44.54191192]
[1739367670372,42.91871192,190.29,190.22,42.91871192]
[1739367670679,1.38000454,190.37,190.1,44.54191192]
[1739367671194,1.38000454,190.37,190.1,1.6232]
[1739367671195,0.12549,190.35,190.1,1.6232]
[1739367671399,1.38014059,190.34,190.11,13.53733853]
[1739367671684,1.38014059,190.34,190.1,1.6232]
[1739367671685,42.91871192,190.25,190.16,42.91871192]
[1739367672377,42.91871192,190.23,190.16,42.91871192]
[1739367672591,44.29876954,190.33,190.18,13.41184853]
[1739367672770,44.29876954,190.33,190.17,20.0]
[1739367672771,1.37943088,190.32,190.1,44.54191192]
[1739367672970,20.37647,190.31,190.1,1.6232]
[1739367673188,1.38010872,190.3,190.1,1.6232]
[1739367673398,6.4971,190.29,189.97,1.5511]
[1739367673560,0.12549,190.25,189.97,1.5511]
[1739367673765,13.78831853,190.23,189.98,13.41184853]
[1739367673994,1.38124575,190.22,189.98,13.41184853]
[1739367674162,1.38124575,190.22,189.97,1.5511]
[1739367674163,0.37647,190.17,189.97,1.5511]
[1739367674363,0.12549,190.08,190.03,42.91871192]
[1739367674600,42.91871192,190.11,190.01,42.91871192]
[1739367674916,0.12549,190.09,190.03,42.91871192]
[1739367675080,42.91871192,190.13,190.03,42.91871192]
[1739367675402,42.91871192,190.11,190.03,42.91871192]
[1739367675602,0.12549,190.06,189.99,42.91871192]
[1739367675966,42.91871192,190.05,189.97,44.46981192]
[1739367676163,1.38170704,190.04,189.97,42.91871192]
[1739367676372,20.0,190.02,189.97,42.91871192]
[1739367676702,20.0,190.02,189.85,1.5464]
[1739367676703,42.91871192,189.99,189.91,42.91871192]
[1739367676868,42.91871192,190.03,189.93,42.91871192]
[1739367677067,1.38177061,190.07,189.95,42.91871192]
[1739367677277,0.25098,190.0,189.93,42.91871192]
[1739367677601,0.12549,189.96,189.89,42.91871192]
[1739367677899,42.91871192,190.03,189.95,42.91871192]
[1739367678073,42.91871192,190.07,189.99,42.91871192]
[1739367678394,1.07087567,190.28,189.97,42.91871192]
[1739367678395,0.25098,190.04,189.97,42.91871192]
[1739367678580,42.91871192,190.01,189.93,42.91871192]
[1739367678799,0.25098,189.99,189.93,42.91871192]
[1739367679109,43.04420192,189.95,189.87,42.91871192]
[1739367679287,1.38211772,189.96,189.89,42.91871192]
[1739367679482,0.12549,189.94,189.87,42.91871192]
[1739367679695,44.30111343,189.93,189.85,44.46511192]
[1739367679909,42.91871192,189.97,189.87,42.91871192]
[1739367680120,42.91871192,189.95,189.87,42.91871192]
[1739367680408,1.38232862,189.96,189.89,42.91871192]
[1739367680623,0.25098,189.94,189.87,42.91871192]
[1739367680808,0.12549,189.94,189.87,42.91871192]
[1739367680986,42.91871192,189.95,189.88,13.41184853]
[1739367681185,42.91871192,189.93,189.85,42.91871192]
[1739367681520,42.91871192,189.95,189.88,13.41184853]
[1739367681736,44.30132194,189.99,189.9,13.41184853]
[1739367681921,42.91871192,190.05,189.97,42.91871192]
[1739367682114,42.91871192,190.05,189.8,48.31280192]
[1739367682115,42.91871192,190.01,189.93,42.91871192]
[1739367682441,1.38211396,190.01,189.95,42.91871192]
[1739367682586,1.38191059,190.08,189.98,13.41184853]
[1739367682790,42.91871192,190.07,189.98,42.91871192]
[1739367683022,42.91871192,190.01,189.93,42.91871192]
[1739367683223,42.91871192,190.03,189.95,42.91871192]
[1739367683427,0.12549,190.01,189.95,42.91871192]
[1739367683804,0.25098,189.98,189.91,42.91871192]
[1739367683998,42.91871192,190.01,189.93,42.91871192]
[1739367684406,1.38194995,190.0,189.93,42.91871192]
[1739367684606,42.91871192,190.03,189.95,42.91871192]
[1739367684809,42.91871192,190.05,189.98,13.41184853]
[1739367685128,1.38178818,190.04,189.98,13.41184853]
[1739367685492,0.12549,189.98,189.91,42.91871192]
[1739367685824,1.38208286,189.98,189.91,42.91871192]
[1739367686018,1.38208286,189.98,189.83,13.41603973]
[1739367686019,42.91871192,190.01,189.94,13.41184853]
[1739367686247,42.91871192,190.01,189.96,13.41184853]
[1739367686443,0.25098,189.99,189.93,42.91871192]
[1739367686623,42.91871192,190.04,189.96,42.91871192]
[1739367686940,1.38158818,190.03,189.96,42.91871192]
[1739367687123,1.38167302,190.07,189.96,42.91871192]
[1739367687324,0.12549,190.01,189.94,42.91871192]
[1739367687513,1.38167302,190.07,189.83,18.68363973]
[1739367687514,42.91871192,189.98,189.9,42.91871192]
[1739367687717,42.91871192,190.0,189.92,42.91871192]
[1739367687912,1.38194951,189.99,189.93,13.41184853]
[1739367688243,42.91871192,190.01,189.94,42.91871192]
[1739367688548,42.91871192,189.97,189.88,42.91871192]
[1739367688717,0.12549,189.94,189.88,42.91871192]
[1739367688914,0.12549,189.92,189.89,13.41184853]
[1739367689248,42.91871192,189.95,189.88,42.91871192]
[1739367689413,0.12549,189.92,189.86,42.91871192]
[1739367689611,0.12549,189.92,189.88,42.91871192]
[1739367689919,0.12549,190.0,189.8,42.91871192]
[1739367689920,42.91871192,189.98,189.91,13.41184853]
[1739367690130,0.25098,189.97,189.91,13.41184853]
[1739367690450,0.12549,189.95,189.88,42.91871192]
[1739367690740,42.91871192,190.0,189.93,13.41184853]
[1739367690936,42.91871192,190.02,189.95,13.41184853]
[1739367691111,42.91871192,190.04,189.96,42.91871192]
[1739367691310,42.91871192,190.02,189.94,42.91871192]
[1739367691542,1.3818827,190.01,189.94,42.91871192]
[1739367691729,0.12549,190.0,189.95,13.41184853]
[1739367692032,0.12549,190.0,189.93,13.41184853]
[1739367692033,43.16969192,190.0,189.93,13.41184853]
[1739367692332,42.91871192,190.02,189.95,13.41184853]
[1739367692530,42.91871192,190.04,189.97,13.41184853]
[1739367692830,1.38163245,190.09,190.01,13.41184853]
[1739367692831,42.91871192,190.08,190.01,13.41184853]
[1739367693233,42.91871192,190.04,189.96,42.91871192]
[1739367693436,42.91871192,190.08,190.0,42.91871192]
[1739367693734,42.91871192,190.1,190.03,13.41184853]
[1739367693934,42.91871192,190.12,190.05,13.41184853]
[1739367694309,1.50665182,190.11,190.05,13.41184853]
[1739367694513,0.12549,190.08,190.02,42.91871192]
[1739367695016,0.12549,190.08,189.87,5.2665]
[1739367695017,43.04420192,190.08,190.01,13.41184853]
[1739367695231,0.12549,190.05,190.01,13.41184853]
[1739367695536,42.91871192,190.03,189.96,42.91871192]
[1739367695745,42.91871192,190.08,190.0,42.91871192]
[1739367695926,42.91871192,190.04,189.96,42.91871192]
[1739367696319,60.48639821,190.06,189.97,42.91871192]
[1739367696531,60.48639821,190.06,190.04,42.91871192]
[1739367696532,17.56768629,190.06,190.04,42.91871192]
[1739367696933,17.56768629,190.06,190.02,42.91871192]
[1739367697746,0.12549,190.05,189.98,42.91871192]
[1739367698049,0.25098,190.02,189.96,42.91871192]
[1739367698249,0.12549,189.99,189.94,42.91871192]
[1739367698450,0.25098,189.97,189.89,42.91871192]
[1739367698632,0.12549,189.93,189.87,42.91871192]
[1739367698838,1.38237426,190.05,189.91,42.91871192]
[1739367699054,1.38237426,190.05,189.72,26.71452775]
[1739367699228,1.38237426,190.05,189.69,167.79896512]
[1739367699430,17.56768629,190.06,189.72,21.112131]
[1739367699738,0.37647,190.02,189.74,13.53733853]
[1739367699944,0.37647,190.0,189.77,20.0]
[1739367700137,0.12549,189.91,189.84,13.41184853]
[1739367700436,42.91871192,189.96,189.89,42.91871192]
[1739367700769,42.91871192,190.01,189.93,42.91871192]
[1739367700930,1.38187882,190.0,189.94,13.41184853]
[1739367701256,0.25098,189.94,189.7,42.91871192]
[1739367701463,42.91871192,189.88,189.79,42.91871192]
[1739367701667,42.91871192,189.88,189.7,43.93609693]
[1739367701668,42.91871192,189.88,189.82,13.41184853]
[1739367701973,42.91871192,189.9,189.84,13.41184853]
[1739367702145,42.91871192,189.88,189.81,42.91871192]
[1739367702330,42.91871192,189.92,189.83,42.91871192]
[1739367702532,42.91871192,189.98,189.9,13.41184853]
[1739367702745,42.91871192,189.96,189.9,13.41184853]
[1739367702944,42.91871192,190.0,189.94,13.41184853]
[1739367703134,42.91871192,190.0,189.67,13.41603973]
[1739367703135,42.91871192,189.95,189.67,13.41603973]
[1739367703355,1.38285251,189.94,189.7,1.01746843]
[1739367703547,1.3825947,189.99,189.73,20.0]
[1739367703747,0.25098,189.96,189.78,13.41184853]
[1739367703951,0.25098,189.94,189.78,13.41184853]
[1739367704155,42.91871192,189.89,189.81,42.91871192]
[1739367704466,60.48639821,189.93,189.86,13.41184853]
[1739367705358,17.56768629,189.93,189.92,13.41184853]
[1739367705560,17.56768629,189.93,189.88,42.91871192]
[1739367705762,17.56768629,189.93,189.92,42.91871192]
[1739367706055,17.56768629,189.93,189.92,13.41184853]
[1739367706438,0.063,189.98,189.81,13.91380853]
[1739367706633,0.063,189.98,189.85,0.12549]
[1739367706830,0.063,189.98,189.86,1.01538073]
[1739367707033,0.063,189.98,189.95,13.41184853]
[1739367707349,0.063,189.98,189.97,56.33056045]
[1739367707663,42.91871192,190.14,189.98,14.92394853]
[1739367707842,42.91871192,190.15,190.07,42.91871192]
[1739367708159,42.91871192,190.16,190.08,42.91871192]
[1739367708460,6.2418,190.08,189.93,42.91871192]
[1739367708636,1.38090576,190.07,189.78,1.5121]
[1739367708848,13.78831853,190.11,189.78,1.5121]
[1739367709055,15.69,190.08,189.78,1.5121]
[1739367709252,1.38232507,190.07,189.78,2.52851355]
[1739367709569,42.91871192,190.06,189.96,42.91871192]
[1739367710285,0.12549,190.09,190.0,42.91871192]
[1739367710458,42.91871192,190.12,190.02,42.91871192]
[1739367710952,1.3811288,190.13,190.06,42.91871192]
[1739367711149,42.91871192,190.1,190.02,42.91871192]
[1739367711372,42.91871192,190.14,190.04,42.91871192]
[1739367711570,42.91871192,190.12,190.04,42.91871192]
[1739367711766,0.12549,190.13,190.04,42.91871192]
[1739367711963,42.91871192,190.16,190.06,42.91871192]
[1739367712173,0.063,190.17,190.1,42.91871192]
[1739367712555,42.91871192,190.16,190.06,42.91871192]
[1739367712752,42.91871192,190.16,189.84,46.33937669]
[1739367712753,42.91871192,190.12,190.02,42.91871192]
[1739367712955,42.91871192,190.11,190.03,42.91871192]
[1739367713185,1.38069258,190.15,190.05,42.91871192]
[1739367713186,42.91871192,190.13,190.05,42.91871192]
[1739367713354,0.063,190.17,190.11,42.91871192]
[1739367713554,0.063,190.17,190.13,42.91871192]
[1739367713878,0.063,190.17,190.11,42.91871192]
[1739367714061,0.063,190.17,190.13,42.91871192]
[1739367714250,0.063,190.17,190.0,42.91871192]
[1739367714251,42.98171192,190.17,190.08,42.91871192]
[1739367714655,42.91871192,190.13,190.06,42.91871192]
[1739367714968,42.91871192,190.13,190.04,42.91871192]
[1739367715293,42.91871192,190.08,190.0,42.91871192]
[1739367715491,42.91871192,190.1,190.02,42.91871192]
[1739367715796,1.38093288,190.13,190.08,42.91871192]
[1739367715959,0.063,190.17,190.1,42.91871192]
[1739367716154,0.063,190.17,190.12,42.91871192]
[1739367716357,0.063,190.17,190.14,42.91871192]
[1739367716556,42.91871192,190.16,190.08,42.91871192]
[1739367716989,42.98171192,190.17,190.09,42.91871192]
[1739367717187,1.38086745,190.16,190.09,42.91871192]
[1739367717409,0.063,190.17,190.11,42.91871192]
[1739367717558,0.063,190.17,190.13,42.91871192]
[1739367717758,0.063,190.17,190.11,42.91871192]
[1739367718372,0.063,190.17,190.0,43.93134479]
[1739367718373,42.98171192,190.17,190.09,42.91871192]
[1739367718690,0.063,190.17,190.11,42.91871192]
[1739367718874,0.063,190.17,190.15,42.91871192]
[1739367719705,0.063,190.17,190.16,42.91871192]
[1739367719878,0.063,190.17,190.15,42.91871192]
[1739367720184,0.063,190.17,190.13,42.91871192]
[1739367720380,0.063,190.17,190.15,42.91871192]
[1739367720986,42.98171192,190.33,190.18,21.5942]
[1739367720987,0.063,190.33,190.18,21.5942]
[1739367721279,1.37887603,190.32,190.18,1.5942]
[1739367721495,0.063,190.33,190.18,1.5942]
[1739367721786,1.37952056,190.32,190.18,1.5942]
[1739367722285,0.063,190.33,190.31,42.91871192]
[1739367722658,0.063,190.33,190.32,42.91871192]
[1739367722864,0.063,190.33,190.1,13.1502]
[1739367723183,0.063,190.33,190.11,1.01054453]
[1739367723372,0.12549,190.32,190.17,20.0]
[1739367723677,0.063,190.33,190.19,13.41184853]
[1739367723890,0.063,190.33,190.32,42.91871192]
[1739367724678,0.063,190.33,190.14,7.56461975]
[1739367724870,0.25098,190.32,190.14,6.5544]
[1739367725074,0.063,190.33,190.15,1.01109144]
[1739367725274,0.063,190.33,190.19,13.41184853]
[1739367725474,0.063,190.33,190.2,1.01031224]
[1739367725684,0.063,190.33,190.16,1.00955106]
[1739367725916,0.063,190.33,190.31,42.91871192]
[1739367726075,0.063,190.33,190.32,42.91871192]
[1739367726394,0.063,190.36,190.32,42.91871192]
[1739367726701,0.063,190.36,190.33,13.53733853]
[1739367726869,0.063,190.36,190.22,1.00869898]
[1739367727074,0.063,190.36,190.18,1.5942]
[1739367727411,0.12549,190.34,190.18,1.5942]
[1739367727690,0.12549,190.3,190.09,62.6]
[1739367727906,0.25098,190.25,190.2,42.91871192]
[1739367728203,43.16969192,190.21,190.11,42.91871192]
[1739367728373,0.25098,190.17,190.1,42.91871192]
[1739367728575,0.25098,190.17,190.06,0.052615]
[1739367728576,42.91871192,190.15,190.08,42.91871192]
[1739367728780,1.50628812,190.14,190.1,42.91871192]
[1739367729008,15.8,190.28,190.12,42.91871192]
[1739367729009,42.91871192,190.26,190.12,42.91871192]
[1739367729308,42.91871192,190.26,190.06,0.052615]
[1739367729309,42.91871192,190.32,190.24,42.91871192]
[1739367729483,1.37988694,190.31,190.13,0.12549]
[1739367729682,0.063,190.36,190.3,42.91871192]
[1739367730012,0.063,190.36,190.32,42.91871192]
[1739367730196,1.37935363,190.35,190.1,1.01047067]
[1739367730504,1.38003144,190.34,190.12,21.062629]
[1739367730702,0.063,190.36,190.17,0.12549]
[1739367730875,0.25098,190.34,190.09,1.01103247]
[1739367731073,0.25098,190.3,190.06,0.052615]
[1739367731316,0.25098,190.23,190.16,42.91871192]
[1739367731517,42.91871192,190.25,190.18,42.91871192]
[1739367731710,42.91871192,190.3,190.1,42.91871192]
[1739367731711,42.91871192,190.22,190.1,42.91871192]
[1739367731899,0.25098,190.2,190.06,0.052615]
[1739367732098,0.25098,190.18,190.06,0.052615]
[1739367732415,0.25098,190.16,190.15,0.063]
[1739367732922,0.25098,190.14,190.06,0.052615]
[1739367733113,0.25098,190.08,190.06,0.052615]
[1739367733309,1.38137417,190.13,190.06,0.052615]
[1739367733310,42.91871192,190.12,190.06,0.052615]
[1739367733622,43.16969192,190.07,190.06,0.052615]
[1739367733795,0.25098,190.07,190.06,0.052615]
[1739367734721,1.63281128,190.07,190.06,0.052615]
[1739367734923,44.5515232,190.07,190.06,0.052615]
[1739367735094,42.91871192,190.1,190.06,0.052615]
[1739367735293,21.38135659,190.17,190.06,0.052615]
[1739367735494,0.25098,190.16,190.06,0.052615]
[1739367735725,0.25098,190.12,190.06,0.052615]
[1739367735893,0.12549,190.09,190.06,0.052615]
[1739367736090,20.25098,190.07,190.06,0.052615]
[1739367736318,20.25098,190.07,189.86,0.03]
[1739367736509,0.25098,190.02,189.86,0.03]
[1739367736721,43.16969192,189.94,189.87,42.91871192]
[1739367736901,42.91871192,190.09,189.93,42.91871192]
[1739367737107,42.91871192,190.13,190.06,42.91871192]
[1739367737302,19.35749085,190.22,190.06,20.0]
[1739367737303,30.13391703,190.22,190.06,20.0]
[1739367737509,1.38025572,190.21,190.06,20.0]
[1739367737792,1.38042108,190.21,190.02,1.5156]
[1739367738215,1.38042108,190.21,190.07,13.41184853]
[1739367738516,1.38042108,190.21,190.14,42.91871192]
[1739367738722,0.03,190.23,190.16,42.91871192]
[1739367738914,0.03,190.23,190.18,42.91871192]
[1739367739109,7.52858322,190.3,190.22,43.04420192]
[1739367739304,7.52858322,190.3,190.26,13.53733853]
[1739367739499,14.99706767,190.32,190.29,33.41184853]
[1739367739806,10.75471759,190.45,190.34,13.53733853]
[1739367740016,10.75471759,190.45,190.36,13.41184853]
[1739367740214,42.91871192,190.49,190.41,42.91871192]
[1739367740416,42.91871192,190.47,190.4,26.41490019]
[1739367740627,42.91871192,190.43,190.23,26.55484276]
[1739367740814,7.52668824,190.43,190.34,20.0]
[1739367741006,7.52668824,190.43,190.36,26.98531255]
[1739367741320,7.52668824,190.43,190.41,42.91871192]
[1739367741708,7.52668824,190.43,190.41,56.45605045]
[1739367741895,29.63310509,190.47,190.46,13.53733853]
[1739367742222,42.91871192,190.7,190.48,0.12549]
[1739367742535,69.25523328,190.8,190.41,26.17468755]
[1739367742738,1.37715647,190.6,190.41,26.17468755]
[1739367743028,0.12549,190.57,190.41,26.17468755]
[1739367743206,0.063,190.62,190.49,20.0]
[1739367743398,0.063,190.62,190.6,42.91871192]
[1739367743603,0.063,190.62,190.6,85.83742384]
[1739367743801,0.063,190.62,190.6,42.91871192]
[1739367744415,0.063,190.62,190.6,56.45605045]
[1739367744618,0.063,190.62,190.6,42.91871192]
[1739367744619,406.11003517,190.61,190.6,42.91871192]
[1739367744833,356.00538953,190.61,190.6,56.58154045]
[1739367745002,295.71252716,190.61,190.6,56.83252045]
[1739367745202,95.81215061,190.61,190.6,56.83252045]
[1739367745418,56.14874044,190.61,190.6,142.66994429]
[1739367745631,0.03,190.8,190.63,20.0]
[1739367745798,0.03,190.8,190.79,42.91871192]
[1739367746124,0.03,190.8,190.7,42.91871192]
[1739367746346,0.03,190.8,190.71,0.12549]
[1739367746645,0.03,190.8,190.75,0.12549]
[1739367746822,0.03,190.8,190.79,0.12549]
[1739367747028,0.03,190.8,190.78,20.0]
[1739367747344,0.063,191.01,190.88,0.12549]
[1739367747547,0.063,191.01,191.0,42.91871192]
[1739367747926,0.063,191.01,190.82,20.0]
[1739367748135,0.063,191.01,190.92,0.50196]
[1739367748327,0.03,191.07,190.97,13.53733853]
[1739367748640,0.03,191.07,190.76,0.15]
[1739367749149,0.03,191.07,191.06,42.91871192]
[1739367750421,0.03,191.07,190.82,574.54019263]
[1739367750643,0.03,191.07,190.93,20.0]
[1739367750826,0.03,191.07,191.05,42.91871192]
[1739367751028,0.03,191.07,191.06,42.91871192]
[1739367751541,0.03,191.07,191.06,85.83742384]
[1739367751747,0.03,191.07,191.06,42.91871192]
[1739367752455,0.03,191.07,191.0,42.91871192]
[1739367752456,0.03,191.07,191.05,42.91871192]
[1739367752747,0.03,191.07,191.06,42.91871192]
[1739367752954,42.94871192,191.07,191.0,42.91871192]
[1739367753131,0.03,191.07,190.84,5.2399]
[1739367753447,0.03,191.07,190.87,20.0]
[1739367753655,0.03,191.07,190.88,0.9579691]
[1739367753823,0.03,191.07,190.8,67.7209]
[1739367754154,0.03,191.07,190.82,0.25098]
[1739367754353,0.03,191.07,191.06,42.91871192]
[1739367755344,0.03,191.07,190.9,42.91871192]
[1739367755553,0.03,191.07,190.93,20.0]
[1739367755755,0.03,191.07,190.9,42.91871192]
[1739367756047,0.03,191.07,190.91,5.238]
[1739367756356,0.03,191.07,191.06,42.91871192]
[1739367758257,0.03,191.07,190.9,42.91871192]
[1739367758258,0.03,191.07,191.03,42.91871192]
[1739367758443,0.03,191.07,190.9,42.91871192]
[1739367758943,0.28098,191.07,190.9,42.91871192]
[1739367759148,1.6550586,191.07,190.9,42.91871192]
[1739367759451,42.91871192,191.0,190.92,42.91871192]
[1739367759666,43.16969192,191.05,190.97,42.91871192]
[1739367759957,49.20861192,191.06,190.99,42.91871192]
[1739367760135,6.2899,191.06,190.9,42.91871192]
[1739367760325,6.2899,191.06,190.94,20.0]
[1739367761040,6.2899,191.06,190.95,13.53733853]
[1739367761243,0.03,191.07,190.97,0.12549]
[1739367761453,0.03,191.07,191.06,42.91871192]
[1739367762763,0.063,191.12,191.06,85.83742384]
[1739367762947,0.063,191.12,191.11,42.91871192]
[1739367764063,0.03,191.16,191.11,42.91871192]
[1739367764250,0.03,191.16,191.15,42.91871192]
[1739367764446,6.2775,191.38,191.19,0.25098]
[1739367764648,6.2775,191.38,191.24,20.37647]
[1739367764871,6.2775,191.49,191.29,13.53733853]
[1739367765339,6.2775,191.49,191.18,18.3072]
[1739367765538,1.37091654,191.48,191.19,13.91380853]
[1739367765740,6.2775,191.49,191.19,14.87022436]
[1739367766046,42.91871192,191.43,191.35,42.91871192]
[1739367766361,7.64885582,191.49,191.35,42.91871192]
[1739367766563,7.64885582,191.49,191.37,20.0]
[1739367766564,6.2775,191.49,191.37,20.0]
[1739367766862,6.2775,191.49,191.41,20.0]
[1739367767061,6.2775,191.49,191.42,0.12549]
[1739367767234,1.37028774,191.48,191.2,0.9563658]
[1739367767860,6.2775,191.49,191.23,262.54019263]
[1739367768038,6.2775,191.49,191.47,42.91871192]
[1739367768233,6.2775,191.49,191.46,42.91871192]
[1739367768469,6.2775,191.49,191.4,42.91871192]
[1739367768470,6.2775,191.49,191.48,42.91871192]
[1739367768670,0.063,191.55,191.48,42.91871192]
[1739367768958,0.063,191.55,191.43,20.0]
[1739367769263,0.063,191.55,191.54,42.91871192]
[1739367769462,0.063,191.56,191.54,42.91871192]
[1739367769643,6.3831,191.7,191.54,42.91871192]
[1739367769644,6.3831,191.7,191.55,42.91871192]
[1739367769838,6.3831,191.7,191.56,13.41184853]
[1739367770046,42.91871192,191.65,191.57,42.91871192]
[1739367770274,7.75276464,191.7,191.5,42.91871192]
[1739367770444,1.36962221,191.69,191.5,42.91871192]
[1739367770849,6.3831,191.7,191.51,0.50196]
[1739367771163,6.3831,191.7,191.53,0.50196]
[1739367771362,0.063,191.74,191.69,42.91871192]
[1739367771864,0.063,191.74,191.73,42.91871192]
[1739367772262,6.1571,191.85,191.73,42.91871192]
[1739367773348,1.5051,191.86,191.82,42.91871192]
[1739367773548,1.5051,191.86,191.84,42.91871192]
[1739367773761,0.063,191.94,191.84,42.91871192]
[1739367773961,0.063,191.94,191.9,42.91871192]
[1739367774165,44.09774992,191.98,191.9,42.91871192]
[1739367774659,1.179038,191.98,191.92,42.91871192]
[1739367774971,44.09774992,191.98,191.9,42.91871192]
[1739367775169,1.179038,191.98,191.96,42.91871192]
[1739367775364,42.91871192,192.06,191.96,42.91871192]
[1739367775756,1.36703908,192.09,191.92,42.91871192]
[1739367775757,42.91871192,192.0,191.92,42.91871192]
[1739367775951,42.91871192,192.06,191.74,26.01979791]
[1739367776254,26.14034085,192.36,191.74,26.01979791]
[1739367776255,1.3667996,192.19,191.81,0.95332434]
[1739367776561,1.3667996,192.19,191.83,13.41184853]
[1739367776865,1.3667996,192.19,191.84,0.50196]
[1739367777060,7.9027,192.22,191.9,0.50196]
[1739367777258,7.9027,192.22,191.91,0.95282759]
[1739367777463,42.91871192,192.16,192.09,42.91871192]
[1739367777664,42.91871192,192.16,192.0,42.91871192]
[1739367777665,42.91871192,192.14,192.05,42.91871192]